bitfinex-derivatives/quotes_SOLF0:USTF0_20241021
["timestamp","ask_amount","ask_price","bid_price","bid_amount"]
[1729529354117,3.0373,164.7,164.6,4.92]
[1729529354621,3.0373,164.7,164.65,3.0379]
[1729529357115,4.92,164.73,164.6,4.92]
[1729529357116,7.9574,164.69,164.64,3.0382]
[1729529357316,4.92,164.69,164.6,4.92]
[1729529357727,3.0376,164.68,164.59,3.9722]
[1729529358227,3.0378,164.67,164.59,3.9722]
[1729529358926,3.0378,164.67,164.63,3.0383]
[1729529363928,3.0382,164.65,164.61,3.0387]
[1729529364119,7.95171685,164.65,164.55,2.5801]
[1729529364621,7.95171685,164.65,164.58,3.0394]
[1729529364622,3.0387,164.62,164.58,3.0394]
[1729529364815,3.0387,164.62,164.55,2.5801]
[1729529365422,3.0387,164.62,164.57,3.0395]
[1729529365725,3.0387,164.62,164.55,2.5801]
[1729529366828,3.0387,164.62,164.59,3.0391]
[1729529371131,7.95171685,164.65,164.55,2.5801]
[1729529371331,3.0383,164.64,164.55,2.5801]
[1729529371530,7.95171685,164.65,164.55,2.5801]
[1729529371732,3.03171685,164.65,164.55,2.5801]
[1729529372034,4.92,164.64,164.56,1.274]
[1729529372233,7.99107038,164.64,164.56,1.274]
[1729529372436,7.99107038,164.64,164.56,6.194]
[1729529372730,3.07107038,164.64,164.56,6.194]
[1729529372928,4.92,164.68,164.56,6.194]
[1729529373325,4.92,164.68,164.57,6.079]
[1729529374633,3.9592,164.73,164.56,6.194]
[1729529374634,4.92,164.7,164.58,6.0787]
[1729529374825,4.92,164.7,164.59,3.07581496]
[1729529375028,4.92,164.7,164.6,4.92]
[1729529375529,4.92,164.7,164.67,3.0376]
[1729529376032,4.92,164.7,164.61,2.5638]
[1729529376229,4.92,164.7,164.6,4.92]
[1729529376434,4.92,164.7,164.57,2.5638]
[1729529376633,4.92,164.7,164.62,3.0386]
[1729529377530,3.038,164.66,164.57,7.4838]
[1729529377739,4.92,164.65,164.63,3.0384]
[1729529377932,3.03578878,164.64,164.63,3.0384]
[1729529380627,3.0374,164.69,164.57,7.4838]
[1729529380832,4.92,164.68,164.57,7.4838]
[1729529381229,4.92,164.68,164.65,3.0379]
[1729529381637,7.9575,164.68,164.65,3.0379]
[1729529382838,7.9575,164.68,164.57,7.4838]
[1729529382839,4.92,164.68,164.57,7.4838]
[1729529383636,4.92,164.68,164.65,3.038]
[1729529383946,4.92,164.68,164.57,7.4838]
[1729529384244,4.92,164.7,164.57,7.4838]
[1729529384538,4.92,164.7,164.69,3.0373]
[1729529386536,6.9959,164.73,164.69,3.0373]
[1729529386831,4.92,164.72,164.69,3.0373]
[1729529389041,4.92,164.72,164.63,3.8023]
[1729529389242,4.92,164.72,164.7,3.0371]
[1729529391443,4.92,164.72,164.63,3.8023]
[1729529391640,4.92,164.72,164.71,3.037]
[1729529392341,6.13083398,164.74,164.71,3.037]
[1729529392543,4.92,164.73,164.71,3.037]
[1729529392750,6.13083398,164.74,164.71,3.037]
[1729529393054,3.09433398,164.74,164.63,3.8023]
[1729529393239,4.92,164.74,164.73,3.0366]
[1729529393441,7.94259066,164.74,164.64,6.0763]
[1729529394648,3.0358,164.78,164.74,3.0363]
[1729529394846,4.92,164.77,164.74,3.0363]
[1729529396246,4.92,164.77,164.75,3.0362]
[1729529396844,4.92,164.77,164.67,4.92]
[1729529396845,3.05206898,164.79,164.67,4.92]
[1729529397053,4.92,164.78,164.77,3.0358]
[1729529397255,7.94070415,164.78,164.77,3.0358]
[1729529397449,3.02070415,164.78,164.77,3.0358]
[1729529397659,7.9551,164.81,164.71,4.92]
[1729529397859,11.02320681,164.81,164.78,3.0356]
[1729529398149,7.98810681,164.81,164.71,4.92]
[1729529398352,3.0354,164.8,164.77,3.0358]
[1729529400351,3.036,164.77,164.74,3.0363]
[1729529400546,7.956,164.77,164.74,3.0363]
[1729529400744,4.92,164.77,164.69,3.9569]
[1729529401050,4.92,164.77,164.65,117.63758299]
[1729529401356,4.92,164.77,164.72,3.0366]
[1729529401357,3.0361,164.76,164.72,3.0366]
[1729529401550,3.0361,164.76,164.66,3.8863]
[1729529402151,7.9559,164.77,164.66,3.8863]
[1729529402558,7.9559,164.77,164.73,3.0365]
[1729529402853,4.92,164.77,164.66,3.8863]
[1729529403250,4.92,164.77,164.69,3.0373]
[1729529403456,4.92,164.77,164.69,4.92]
[1729529403860,4.92,164.8,164.69,4.92]
[1729529404251,7.95905527,164.8,164.69,7.98244897]
[1729529405257,10.99435527,164.8,164.69,7.98244897]
[1729529405652,4.92,164.8,164.69,7.98244897]
[1729529406860,3.07762037,164.81,164.69,7.98244897]
[1729529407069,4.92,164.83,164.69,7.98244897]
[1729529407254,4.92,164.83,164.74,3.0363]
[1729529407449,3.0359,164.77,164.74,3.0363]
[1729529407662,3.06790029,164.76,164.68,4.92]
[1729529407958,3.06790029,164.76,164.73,3.0364]
[1729529408658,3.0359,164.77,164.73,3.0364]
[1729529408961,3.09500078,164.76,164.73,3.0364]
[1729529409161,3.0359,164.77,164.73,3.0364]
[1729529409557,6.08989331,164.77,164.73,3.0364]
[1729529410063,4.92,164.78,164.69,3.06948503]
[1729529410260,7.90929264,164.78,164.69,3.06948503]
[1729529410855,7.9554,164.8,164.69,3.06948503]
[1729529411462,3.09664106,164.79,164.76,3.0359]
[1729529415163,6.13214106,164.79,164.75,3.036]
[1729529415560,6.13214106,164.79,164.69,3.06948503]
[1729529415754,3.0357,164.78,164.74,3.0363]
[1729529415965,4.92,164.8,164.66,122.66995485]
[1729529416168,7.90242318,164.8,164.66,122.66995485]
[1729529416369,3.0362,164.76,164.72,3.0368]
[1729529416668,7.9562,164.76,164.72,3.0368]
[1729529417257,3.0365,164.74,164.7,3.037]
[1729529420672,3.0367,164.73,164.69,3.0372]
[1729529420869,4.92,164.72,164.57,232.0788]
[1729529421062,4.92,164.71,164.58,8.9092]
[1729529421365,3.0377,164.68,164.64,3.0381]
[1729529421572,10.57919908,164.71,164.58,8.9092]
[1729529422159,10.57919908,164.71,164.65,3.0379]
[1729529422361,4.92,164.7,164.59,2.97931394]
[1729529422772,4.92,164.7,164.66,3.0377]
[1729529423065,4.92,164.7,164.58,8.9092]
[1729529423861,4.92,164.7,164.59,6.0784]
[1729529424068,4.92,164.7,164.68,3.0374]
[1729529425371,4.92,164.7,164.67,3.0376]
[1729529425674,4.92,164.7,164.58,3.9892]
[1729529425867,3.0376,164.68,164.59,4.92]
[1729529426061,3.0376,164.68,164.64,3.0381]
[1729529426261,4.92,164.7,164.59,4.92]
[1729529426471,3.0374,164.69,164.65,3.0379]
[1729529426866,4.92,164.7,164.59,7.93274775]
[1729529427071,3.09449908,164.71,164.59,7.93274775]
[1729529427268,4.92,164.71,164.68,3.0375]
[1729529427568,3.047391,164.7,164.68,3.0375]
[1729529428473,4.92,164.71,164.68,3.0375]
[1729529428672,4.92,164.71,164.59,7.93274775]
[1729529429063,3.08386193,164.71,164.59,7.93274775]
[1729529429467,4.92,164.72,164.69,3.0373]
[1729529431882,4.9,164.73,164.72,3.0368]
[1729529433180,4.9,164.73,164.65,2.5577]
[1729529433566,4.9,164.73,164.67,3.0376]
[1729529433767,4.9,164.73,164.65,2.5577]
[1729529434176,4.9,164.74,164.7,3.037]
[1729529436973,7.9365,164.74,164.7,3.037]
[1729529438278,3.0366,164.73,164.7,3.037]
[1729529438880,4.9,164.74,164.7,3.037]
[1729529439079,7.9365,164.74,164.7,3.037]
[1729529440878,4.9,164.74,164.65,2.5577]
[1729529441080,4.9,164.74,164.64,1.3185]
[1729529441275,4.9,164.74,164.6,13.5565]
[1729529441482,3.0372,164.7,164.64,3.0382]
[1729529441790,4.9,164.69,164.6,14.9007]
[1729529442479,3.0743012,164.68,164.66,3.0378]
[1729529446093,3.0743012,164.68,164.6,14.9007]
[1729529447091,3.0743012,164.68,164.66,3.0378]
[1729529450592,3.0743012,164.68,164.67,3.0377]
[1729529452187,4.9,164.69,164.67,3.0377]
[1729529452391,3.03037326,164.71,164.69,3.0372]
[1729529452593,4.9,164.72,164.69,3.0372]
[1729529453094,2.99238724,164.71,164.69,3.0372]
[1729529454897,2.99238724,164.71,164.6,8.8227]
[1729529455198,2.99238724,164.71,164.62,6.0772]
[1729529457697,2.99238724,164.71,164.68,3.0374]
[1729529459003,6.02938724,164.71,164.67,3.0376]
[1729529460702,6.02938724,164.71,164.68,3.0375]
[1729529462909,2.99238724,164.71,164.62,6.0772]
[1729529463111,3.0372,164.7,164.67,3.0376]
[1729529463399,2.99980219,164.69,164.67,3.0376]
[1729529466006,4.9,164.68,164.6,3.9227]
[1729529466303,4.9,164.67,164.6,3.9227]
[1729529466503,4.9,164.67,164.64,3.0382]
[1729529467008,7.87487026,164.67,164.64,3.0382]
[1729529467410,10.91257026,164.67,164.64,3.0382]
[1729529468208,6.01257026,164.67,164.64,3.0382]
[1729529468405,4.9,164.66,164.64,3.0382]
[1729529469498,4.9,164.66,164.6,3.9227]
[1729529469499,4.9,164.66,164.6,1.3442]
[1729529469904,4.9,164.66,164.59,112.75926491]
[1729529470106,3.0381,164.65,164.61,3.0386]
[1729529470708,7.938,164.66,164.62,3.0385]
[1729529473005,3.0381,164.65,164.62,3.0385]
[1729529475213,2.97487026,164.67,164.59,112.75926491]
[1729529475410,4.9,164.67,164.6,2.6122]
[1729529475616,7.97153986,164.67,164.6,2.6122]
[1729529475808,7.97153986,164.67,164.64,3.0381]
[1729529476111,7.97153986,164.67,164.6,2.6122]
[1729529476312,7.97153986,164.67,164.63,3.0384]
[1729529476313,3.038,164.66,164.63,3.0384]
[1729529476613,3.038,164.66,164.59,112.75926491]
[1729529477006,3.038,164.66,164.62,3.0385]
[1729529481710,7.97153986,164.67,164.59,112.75926491]
[1729529481909,7.97153986,164.67,164.64,3.0381]
[1729529483614,3.038,164.66,164.59,112.75926491]
[1729529484217,3.038,164.66,164.62,3.0385]
[1729529486014,7.97153986,164.67,164.64,3.0382]
[1729529486914,7.97153986,164.67,164.59,112.75926491]
[1729529487118,7.97153986,164.67,164.65,3.038]
[1729529487608,2.5106,164.71,164.66,3.0379]
[1729529487609,5.5477,164.71,164.66,3.0379]
[1729529487806,4.9,164.7,164.6,6.078]
[1729529488017,4.9,164.7,164.61,1.3282]
[1729529488717,4.9,164.7,164.66,3.0377]
[1729529488718,7.9372,164.7,164.66,3.0377]
[1729529490312,7.9372,164.7,164.61,1.3282]
[1729529490513,7.9372,164.7,164.67,3.0377]
[1729529490911,4.9,164.7,164.61,1.3282]
[1729529491112,4.9,164.7,164.68,3.0375]
[1729529491310,4.9,164.7,164.61,1.3282]
[1729529491514,4.9,164.7,164.67,3.0376]
[1729529493324,4.9,164.7,164.68,3.0375]
[1729529493923,3.0376,164.68,164.65,3.0379]
[1729529494118,3.0376,164.68,164.61,1.3282]
[1729529494420,4.9,164.7,164.68,3.0374]
[1729529494916,4.9,164.7,164.61,1.3282]
[1729529495424,5.56955806,164.71,164.61,1.3282]
[1729529495722,7.95895806,164.71,164.62,2.5756]
[1729529496421,7.95895806,164.71,164.69,3.0372]
[1729529497025,7.95895806,164.71,164.62,2.5756]
[1729529497217,4.9,164.71,164.62,2.5756]
[1729529497725,3.10308193,164.7,164.62,2.5756]
[1729529498022,3.10308193,164.7,164.69,3.0372]
[1729529498814,3.10308193,164.7,164.62,2.5756]
[1729529499015,3.0372,164.7,164.67,3.0377]
[1729529500721,10.98451047,164.71,164.67,3.0377]
[1729529500918,10.98451047,164.71,164.66,3.0378]
[1729529502125,3.0375,164.68,164.61,1.3282]
[1729529502428,7.94751047,164.71,164.61,1.3282]
[1729529502429,4.9,164.67,164.61,1.3282]
[1729529502623,4.9,164.66,164.61,3.0388]
[1729529502827,4.9,164.66,164.59,112.75926491]
[1729529503226,7.9379,164.66,164.62,3.0386]
[1729529503824,4.9,164.66,164.59,112.75926491]
[1729529504026,3.0383,164.64,164.6,3.0389]
[1729529504933,3.0383,164.64,164.59,3.039]
[1729529505531,4.9,164.66,164.59,3.039]
[1729529505731,4.9,164.66,164.59,3.0392]
[1729529506030,4.9,164.66,164.56,1.2474]
[1729529506238,3.0386,164.62,164.58,3.0393]
[1729529506436,4.9,164.61,164.58,3.0393]
[1729529507035,4.9,164.61,164.55,3.0398]
[1729529507036,3.0393,164.59,164.55,3.0398]
[1729529507235,4.9,164.61,164.48,4.9]
[1729529507543,2.6305,164.6,164.46,3.7925]
[1729529507852,3.9753,164.6,164.46,3.7925]
[1729529508337,3.9753,164.6,164.49,3.0409]
[1729529508533,3.9753,164.6,164.46,2.5581]
[1729529508736,40.4453,164.6,164.42,4.9]
[1729529508939,3.0408,164.51,164.46,3.0415]
[1729529509136,4.9,164.5,164.41,3.7972]
[1729529509336,4.9,164.49,164.41,3.7972]
[1729529509532,48.30277652,164.57,164.43,3.0421]
[1729529509533,7.9412,164.48,164.43,3.0421]
[1729529509737,4.9,164.47,164.43,3.0421]
[1729529511137,6.09022061,164.48,164.41,3.7972]
[1729529511138,3.04902061,164.48,164.41,3.7972]
[1729529511442,4.9,164.48,164.47,3.0414]
[1729529511639,11.83277652,164.56,164.41,3.7972]
[1729529511841,4.9,164.55,164.41,8.6972]
[1729529512243,3.0402,164.54,164.48,3.0411]
[1729529512742,4.9,164.55,164.48,3.0411]
[1729529512943,3.0403,164.53,164.48,3.0411]
[1729529513740,4.9,164.55,164.41,8.6972]
[1729529513741,3.0402,164.54,164.41,8.6972]
[1729529513944,4.9,164.55,164.41,8.6972]
[1729529514340,3.0403,164.53,164.48,3.0411]
[1729529515046,3.04,164.55,164.5,3.0408]
[1729529515243,4.9,164.54,164.5,3.0408]
[1729529515737,7.9401,164.54,164.5,3.0408]
[1729529516542,4.9,164.54,164.41,8.6972]
[1729529516740,3.0403,164.53,164.49,3.0409]
[1729529516941,4.9,164.54,164.41,8.6972]
[1729529517142,7.9402,164.54,164.49,3.0409]
[1729529517441,4.9,164.54,164.41,8.6972]
[1729529517937,3.0404,164.53,164.44,3.0418]
[1729529518148,4.9,164.54,164.41,8.6972]
[1729529518349,4.9,164.54,164.41,3.7972]
[1729529518546,3.0408,164.5,164.41,3.7972]
[1729529518846,7.9136092,164.49,164.41,3.7972]
[1729529519144,7.9136092,164.49,164.46,3.0415]
[1729529521150,7.9136092,164.49,164.44,3.0418]
[1729529521451,10.9547092,164.49,164.44,3.0418]
[1729529522546,10.9547092,164.49,164.45,3.0417]
[1729529522842,7.9136092,164.49,164.39,112.89584361]
[1729529523044,7.9136092,164.49,164.43,3.042]
[1729529523441,7.9136092,164.49,164.39,112.89584361]
[1729529524348,7.9136092,164.49,164.39,115.87567432]
[1729529524541,7.9136092,164.49,164.39,112.89584361]
[1729529524542,4.88,164.48,164.39,112.89584361]
[1729529524741,4.88,164.48,164.45,3.0416]
[1729529525137,3.05713405,164.47,164.45,3.0416]
[1729529525647,3.05713405,164.47,164.46,3.0416]
[1729529527653,3.05713405,164.47,164.45,3.0417]
[1729529528448,4.88,164.48,164.45,3.0417]
[1729529528643,7.976322,164.48,164.45,3.0417]
[1729529528954,7.976322,164.48,164.36,3.916]
[1729529529153,1.2415,164.47,164.36,3.916]
[1729529529554,3.042,164.44,164.4,3.0426]
[1729529529853,4.9,164.43,164.4,3.0426]
[1729529530356,4.9,164.43,164.41,3.0425]
[1729529530550,4.9,164.43,164.36,3.916]
[1729529531653,4.9,164.43,164.39,3.0427]
[1729529531857,4.9,164.43,164.31,4.9]
[1729529532156,4.9,164.43,164.31,8.783]
[1729529532545,4.9,164.43,164.37,3.0431]
[1729529532749,4.9,164.43,164.31,3.883]
[1729529533047,1.3254,164.42,164.31,3.883]
[1729529533355,3.043,164.39,164.31,3.883]
[1729529533556,4.9,164.38,164.31,3.883]
[1729529533857,7.98661007,164.38,164.35,3.0436]
[1729529534058,4.3678,164.42,164.31,3.883]
[1729529534258,4.9,164.41,164.31,3.883]
[1729529534457,4.9,164.41,164.37,3.0431]
[1729529534753,7.9425,164.41,164.37,3.0431]
[1729529535656,3.0427,164.4,164.36,3.0433]
[1729529535858,3.01769996,164.39,164.36,3.0433]
[1729529536154,6.06059996,164.39,164.35,3.0435]
[1729529536362,3.0429,164.39,164.35,3.0435]
[1729529537159,3.11818845,164.38,164.35,3.0435]
[1729529537456,4.9,164.37,164.35,3.0435]
[1729529538052,4.9,164.37,164.31,3.883]
[1729529538252,4.9,164.37,164.36,3.0434]
[1729529539051,3.09954047,164.39,164.31,3.883]
[1729529539252,4.9,164.4,164.31,3.883]
[1729529539656,4.9,164.4,164.39,3.0429]
[1729529539859,4.9,164.41,164.39,3.0429]
[1729529542657,1.2523,164.46,164.44,3.0418]
[1729529542959,4.9,164.45,164.35,6.0872]
[1729529543461,7.9418,164.45,164.41,3.0423]
[1729529543860,4.9,164.45,164.35,6.0872]
[1729529544564,4.9,164.45,164.42,3.0423]
[1729529545659,3.096322,164.48,164.46,3.0415]
[1729529545959,3.096322,164.48,164.37,4.9]
[1729529545960,4.9,164.48,164.37,4.9]
[1729529546155,7.88372921,164.48,164.38,3.8633]
[1729529546958,7.88372921,164.48,164.46,3.0414]
[1729529547158,7.88372921,164.48,164.38,9.9494]
[1729529547159,4.9,164.48,164.38,9.9494]
[1729529547562,4.9,164.5,164.48,3.041]
[1729529547764,4.9,164.51,164.41,4.9]
[1729529548465,4.9,164.51,164.48,3.0412]
[1729529549164,4.9,164.51,164.41,4.9]
[1729529549470,4.9,164.51,164.5,3.0408]
[1729529549666,4.9,164.51,164.41,4.9]
[1729529550062,4.9,164.51,164.49,3.0409]
[1729529550257,4.9,164.51,164.41,4.9]
[1729529551870,4.9,164.51,164.44,3.0419]
[1729529552067,4.9,164.51,164.41,4.9]
[1729529552768,4.9,164.51,164.49,3.0409]
[1729529553471,65.74,164.56,164.41,4.9]
[1729529553775,4.88,164.56,164.53,3.0403]
[1729529553973,4.88,164.56,164.46,4.88]
[1729529554161,4.88,164.56,164.53,3.0402]
[1729529555564,6.8392,164.57,164.53,3.0402]
[1729529555864,4.88,164.56,164.53,3.0402]
[1729529556666,4.88,164.56,164.54,3.0401]
[1729529557064,4.88,164.57,164.47,3.8553]
[1729529557463,4.88,164.57,164.56,3.0396]
[1729529558171,4.88,164.6,164.5,4.88]
[1729529558369,5.5867747,164.63,164.5,4.88]
[1729529558674,4.88,164.62,164.6,3.039]
[1729529558867,4.88,164.62,164.51,6.0814]
[1729529559174,3.038,164.66,164.54,4.88]
[1729529559371,7.87450836,164.64,164.61,3.0388]
[1729529560276,7.87450836,164.64,164.55,3.9074]
[1729529560471,2.99450836,164.64,164.63,3.0384]
[1729529560677,6.1643,164.69,164.58,4.88]
[1729529560871,9.1804551,164.69,164.58,4.88]
[1729529561577,3.0378,164.67,164.61,3.0387]
[1729529561980,3.0378,164.67,164.58,4.88]
[1729529562383,12.2178551,164.69,164.58,4.88]
[1729529562977,12.2178551,164.69,164.64,3.0381]
[1729529564580,12.2178551,164.69,164.58,4.88]
[1729529565382,12.2178551,164.69,164.64,3.0381]
[1729529566474,12.2178551,164.69,164.58,4.88]
[1729529566670,12.2178551,164.69,164.65,3.038]
[1729529567374,9.1804551,164.69,164.58,4.88]
[1729529568983,9.1804551,164.69,164.65,3.0379]
[1729529569482,9.1804551,164.69,164.58,4.88]
[1729529569683,9.1804551,164.69,164.66,3.0379]
[1729529571183,12.2178551,164.69,164.65,3.038]
[1729529572279,12.2178551,164.69,164.66,3.0379]
[1729529575381,3.0375,164.68,164.66,3.0379]
[1729529576886,12.2177551,164.69,164.66,3.0379]
[1729529577282,12.2177551,164.69,164.67,3.0377]
[1729529579674,3.0375,164.68,164.65,3.0379]
[1729529580279,3.0378,164.67,164.65,3.0379]
[1729529580476,9.1804551,164.69,164.63,3.0383]
[1729529580682,9.1804551,164.69,164.57,4.88]
[1729529580887,3.0378,164.67,164.57,4.88]
[1729529581287,9.1804551,164.69,164.63,3.0383]
[1729529581587,3.0379,164.66,164.63,3.0383]
[1729529581979,9.1804551,164.69,164.57,4.88]
[1729529582182,3.0376,164.68,164.64,3.0381]
[1729529583885,3.0376,164.68,164.57,4.88]
[1729529584089,9.1804551,164.69,164.57,4.88]
[1729529584090,3.0378,164.67,164.57,4.88]
[1729529584488,3.0378,164.67,164.63,3.0383]
[1729529586091,3.0378,164.67,164.64,3.0382]
[1729529588089,3.0379,164.66,164.63,3.0383]
[1729529588482,9.1804551,164.69,164.57,4.88]
[1729529588687,3.0378,164.67,164.64,3.0382]
[1729529590093,4.88,164.69,164.68,3.0375]
[1729529590386,4.88,164.7,164.68,3.0375]
[1729529592087,7.9172,164.7,164.68,3.0375]
[1729529592386,3.0373,164.69,164.62,3.9411]
[1729529592591,3.00666998,164.68,164.62,3.9411]
[1729529592794,3.00666998,164.68,164.63,3.0383]
[1729529592989,3.00666998,164.68,164.62,3.9411]
[1729529593289,3.00666998,164.68,164.66,3.0378]
[1729529593491,7.9172,164.7,164.66,3.0378]
[1729529595887,7.9172,164.7,164.67,3.0377]
[1729529597091,3.0378,164.67,164.62,1.3235]
[1729529597394,3.05730117,164.66,164.62,1.3235]
[1729529597898,3.05730117,164.66,164.63,3.0384]
[1729529598087,3.038,164.66,164.58,6.2204]
[1729529598286,10.98229102,164.66,164.58,6.2204]
[1729529598490,7.918,164.66,164.62,3.0385]
[1729529599084,10.98668368,164.66,164.62,3.0385]
[1729529599590,10.98668368,164.66,164.63,3.0384]
[1729529600593,7.94868368,164.66,164.63,3.0383]
[1729529600994,10.98658368,164.66,164.62,3.0385]
[1729529602292,7.94868368,164.66,164.58,6.2204]
[1729529602489,7.94868368,164.66,164.6,3.0389]
[1729529603195,3.0383,164.64,164.6,3.0389]
[1729529603790,7.94868368,164.66,164.57,2.6317]
[1729529603993,7.94868368,164.66,164.59,3.0391]
[1729529604593,3.0386,164.62,164.58,3.0393]
[1729529604995,7.9186,164.62,164.58,3.0393]
[1729529605598,7.9186,164.62,164.59,3.0392]
[1729529606402,7.9186,164.62,164.56,112.82152994]
[1729529606403,4.88,164.62,164.56,112.82152994]
[1729529606604,3.0392,164.59,164.55,3.0398]
[1729529608197,3.0391,164.6,164.56,3.0397]
[1729529609302,3.0392,164.59,164.56,3.0397]
[1729529610903,3.0391,164.6,164.56,3.0397]
[1729529611503,3.0391,164.6,164.53,2.499]
[1729529611706,3.0391,164.6,164.55,3.0399]
[1729529613101,3.0391,164.6,164.56,3.0397]
[1729529613699,3.0392,164.59,164.55,3.0399]
[1729529613904,3.0392,164.59,164.53,2.499]
[1729529614599,3.0392,164.59,164.54,3.0399]
[1729529614804,3.0392,164.59,164.53,2.499]
[1729529615699,3.0392,164.59,164.55,3.0398]
[1729529616102,4.86,164.58,164.55,3.0398]
[1729529617100,3.0397,164.57,164.53,3.0402]
[1729529617306,3.02491595,164.57,164.5,1.3588]
[1729529617513,4.86,164.58,164.5,1.3588]
[1729529617710,4.86,164.58,164.47,3.0413]
[1729529617711,3.0405,164.52,164.47,3.0413]
[1729529617916,4.86,164.51,164.47,3.0413]
[1729529618712,7.86070913,164.51,164.47,3.0413]
[1729529619709,7.86070913,164.51,164.45,3.0417]
[1729529619911,7.86070913,164.51,164.43,1.3373]
[1729529620108,1.3172,164.56,164.43,1.3373]
[1729529620308,1.3172,164.56,164.44,9.08521749]
[1729529620309,4.86,164.55,164.44,9.08521749]
[1729529620504,4.86,164.55,164.43,6.1973]
[1729529620505,4.86,164.55,164.45,2.6308]
[1729529620712,3.0408,164.51,164.45,2.6308]
[1729529620910,7.9008,164.51,164.46,3.0414]
[1729529621712,4.86,164.51,164.46,3.0414]
[1729529622012,4.86,164.51,164.45,2.6308]
[1729529622711,4.86,164.51,164.48,3.0411]
[1729529623110,3.0409,164.5,164.45,3.0417]
[1729529625209,3.0409,164.5,164.46,3.0416]
[1729529626612,4.86,164.51,164.43,1.3373]
[1729529626820,3.0412,164.49,164.45,3.0416]
[1729529627218,4.86,164.51,164.43,1.3373]
[1729529627414,4.86,164.51,164.4,1.2782]
[1729529627612,1.2587,164.5,164.4,1.2782]
[1729529628513,3.0416,164.47,164.43,3.0421]
[1729529628713,4.86,164.46,164.43,3.0421]
[1729529629405,7.87860566,164.46,164.43,3.0421]
[1729529630114,3.07733459,164.51,164.42,3.09680946]
[1729529630314,4.86,164.54,164.43,1.2932]
[1729529630516,7.9002,164.54,164.49,3.0409]
[1729529630915,7.9002,164.54,164.44,7.3782]
[1729529630916,7.9002,164.54,164.5,3.0407]
[1729529631215,7.84276309,164.54,164.45,4.86]
[1729529631606,7.84276309,164.54,164.46,1.2415]
[1729529632112,7.84276309,164.54,164.48,3.0411]
[1729529632306,7.84276309,164.54,164.46,1.2415]
[1729529632919,10.88296309,164.54,164.48,3.0411]
[1729529633214,7.84276309,164.54,164.46,1.2415]
[1729529634007,3.0403,164.53,164.49,3.0409]
[1729529635821,10.88296309,164.54,164.5,3.0408]
[1729529637819,4.86,164.53,164.5,3.0408]
[1729529638010,4.86,164.52,164.5,3.0408]
[1729529639121,4.86,164.52,164.51,3.0407]
[1729529639518,2.98276309,164.54,164.53,3.0403]
[1729529640121,2.98276309,164.54,164.52,3.0404]
[1729529640422,2.98276309,164.54,164.46,1.2415]
[1729529640812,2.98276309,164.54,164.53,3.0403]
[1729529641015,2.98276309,164.54,164.46,1.2415]
[1729529641525,2.98276309,164.54,164.51,3.0406]
[1729529642721,7.8999,164.55,164.51,3.0406]
[1729529642918,7.88559523,164.55,164.46,1.2415]
[1729529643123,7.88559523,164.55,164.53,3.0401]
[1729529643430,3.02559523,164.55,164.46,1.2415]
[1729529643724,4.86,164.56,164.54,3.0399]
[1729529643917,3.02066658,164.56,164.54,3.0399]
[1729529644113,4.86,164.57,164.54,3.0399]
[1729529644322,3.1030954,164.56,164.54,3.0399]